[Event "Titled Tuesday Blitz February 07 Late 2023"]
[White "Estrada Nieto, Julian"]
[Black "Alexikov, Alexander"]
[WhiteFideId "5101018"]
[BlackFideId "14103958"]
[WhiteElo "2215"]
[BlackElo "2209"]
[Result "1-0"]
[Round "05"]
[TimeControl "180+2"]
[Date "2023.02.07"]
[WhiteClock "0:00:48"]
[BlackClock "0:00:55"]

1. e4 {[%clk 0:03:00]}  c5 {[%clk 0:02:59]} 2. Nf3 {[%clk 0:03:01]}  d6 {[%clk 0:02:59]} 3. Bb5+ {[%clk 0:03:01]}  Nd7 {[%clk 0:02:57]} 4. d4 {[%clk 0:03:00]}  cxd4 {[%clk 0:02:56]} 5. Qxd4 {[%clk 0:03:01]}  Nf6 {[%clk 0:02:54]} 6. Bg5 {[%clk 0:02:56]}  a6 {[%clk 0:02:48]} 7. Bxd7+ {[%clk 0:02:55]}  Bxd7 {[%clk 0:02:43]} 8. Nc3 {[%clk 0:02:52]}  Bc6 {[%clk 0:02:42]} 9. O-O-O {[%clk 0:02:50]}  e5 {[%clk 0:02:38]} 10. Qd3 {[%clk 0:02:48]}  Be7 {[%clk 0:02:35]} 11. Bxf6 {[%clk 0:02:48]}  gxf6 {[%clk 0:02:33]} 12. Nh4 {[%clk 0:02:41]}  Rg8 {[%clk 0:02:25]} 13. Nf5 {[%clk 0:02:20]}  Qd7 {[%clk 0:02:15]} 14. g3 {[%clk 0:02:11]}  O-O-O {[%clk 0:02:08]} 15. Nd5 {[%clk 0:02:11]}  Bxd5 {[%clk 0:02:01]} 16. Qxd5 {[%clk 0:02:11]}  Bf8 {[%clk 0:01:54]} 17. Rd3 {[%clk 0:02:08]}  Kb8 {[%clk 0:01:53]} 18. Rhd1 {[%clk 0:02:07]}  Qe6 {[%clk 0:01:52]} 19. Nxd6 {[%clk 0:01:54]}  Bxd6 {[%clk 0:01:44]} 20. Qxe6 {[%clk 0:01:53]}  fxe6 {[%clk 0:01:42]} 21. Rxd6 {[%clk 0:01:53]}  Rxd6 {[%clk 0:01:33]} 22. Rxd6 {[%clk 0:01:53]}  Re8 {[%clk 0:01:30]} 23. Rd7 {[%clk 0:01:53]}  h5 {[%clk 0:01:28]} 24. Rf7 {[%clk 0:01:52]}  f5 {[%clk 0:01:27]} 25. exf5 {[%clk 0:01:51]}  exf5 {[%clk 0:01:27]} 26. Rxf5 {[%clk 0:01:51]}  e4 {[%clk 0:01:27]} 27. Kd2 {[%clk 0:01:47]}  h4 {[%clk 0:01:26]} 28. gxh4 {[%clk 0:01:46]}  Kc7 {[%clk 0:01:23]} 29. h5 {[%clk 0:01:44]}  Re6 {[%clk 0:01:19]} 30. Ke3 {[%clk 0:01:38]}  b6 {[%clk 0:01:11]} 31. Rg5 {[%clk 0:01:25]}  a5 {[%clk 0:01:07]} 32. Rg7+ {[%clk 0:01:23]}  Kd8 {[%clk 0:01:06]} 33. Rg6 {[%clk 0:01:22]}  Re5 {[%clk 0:01:06]} 34. h6 {[%clk 0:01:16]}  Kc7 {[%clk 0:01:03]} 35. Rg7+ {[%clk 0:00:57]}  Kc6 {[%clk 0:01:01]} 36. h7 {[%clk 0:00:57]}  Rh5 {[%clk 0:01:00]} 37. Kxe4 {[%clk 0:00:57]}  Rxh2 {[%clk 0:00:59]} 38. f4 {[%clk 0:00:57]}  a4 {[%clk 0:00:57]} 39. f5 {[%clk 0:00:56]}  Kd6 {[%clk 0:00:55]} 40. f6 {[%clk 0:00:48]} 1-0


[Site "https://www.chess.com"]

[Event "Titled Tuesday Blitz February 07 Late 2023"]
[White "Osmonbekov, Talaibek"]
[Black "Flynn, Jacob"]
[WhiteFideId "2017253"]
[BlackFideId "2509393"]
[WhiteElo "2137"]
[BlackElo "2102"]
[Result "0-1"]
[Round "05"]
[TimeControl "180+2"]
[Date "2023.02.07"]
[WhiteClock "0:00:03"]
[BlackClock "0:00:10"]

1. d4 {[%clk 0:03:00]}  d5 {[%clk 0:02:56]} 2. Bf4 {[%clk 0:03:01]}  c5 {[%clk 0:02:55]} 3. e3 {[%clk 0:03:01]}  Nc6 {[%clk 0:02:46]} 4. Nc3 {[%clk 0:03:01]}  cxd4 {[%clk 0:02:35]} 5. exd4 {[%clk 0:03:01]}  a6 {[%clk 0:02:34]} 6. Nf3 {[%clk 0:03:01]}  Bg4 {[%clk 0:02:35]} 7. Be2 {[%clk 0:02:57]}  e6 {[%clk 0:02:35]} 8. O-O {[%clk 0:02:56]}  Bd6 {[%clk 0:02:35]} 9. Qd2 {[%clk 0:02:49]}  Nge7 {[%clk 0:02:34]} 10. Rfe1 {[%clk 0:02:42]}  Qc7 {[%clk 0:02:33]} 11. Ne5 {[%clk 0:02:29]}  Bxe2 {[%clk 0:02:28]} 12. Rxe2 {[%clk 0:01:50]}  Bxe5 {[%clk 0:02:26]} 13. dxe5 {[%clk 0:01:44]}  O-O {[%clk 0:02:19]} 14. Bg3 {[%clk 0:01:37]}  Nf5 {[%clk 0:02:08]} 15. Rae1 {[%clk 0:01:33]}  Ncd4 {[%clk 0:02:04]} 16. Qg5 {[%clk 0:01:20]}  Nxe2+ {[%clk 0:02:00]} 17. Rxe2 {[%clk 0:01:18]}  h6 {[%clk 0:02:01]} 18. Qg4 {[%clk 0:01:18]}  Qe7 {[%clk 0:01:54]} 19. h4 {[%clk 0:01:15]}  Rac8 {[%clk 0:01:51]} 20. Nxd5 {[%clk 0:01:13]}  exd5 {[%clk 0:01:47]} 21. Qxf5 {[%clk 0:01:13]}  Qe6 {[%clk 0:01:45]} 22. Qf3 {[%clk 0:01:06]}  Rc4 {[%clk 0:01:43]} 23. Rd2 {[%clk 0:00:55]}  Rc5 {[%clk 0:01:44]} 24. Bf4 {[%clk 0:00:52]}  Rfc8 {[%clk 0:01:42]} 25. c3 {[%clk 0:00:47]}  Qf5 {[%clk 0:01:36]} 26. Qg3 {[%clk 0:00:44]}  R8c6 {[%clk 0:01:25]} 27. Be3 {[%clk 0:00:42]}  Rb5 {[%clk 0:01:17]} 28. Bd4 {[%clk 0:00:32]}  Rg6 {[%clk 0:01:10]} 29. Qe3 {[%clk 0:00:30]}  Qb1+ {[%clk 0:01:09]} 30. Kh2 {[%clk 0:00:29]}  Rxb2 {[%clk 0:01:07]} 31. h5 {[%clk 0:00:23]}  Rg5 {[%clk 0:01:00]} 32. e6 {[%clk 0:00:22]}  Rxh5+ {[%clk 0:00:58]} 33. Kg3 {[%clk 0:00:19]}  Qg6+ {[%clk 0:00:58]} 34. Kf3 {[%clk 0:00:19]}  Rf5+ {[%clk 0:00:55]} 35. Ke2 {[%clk 0:00:18]}  Rxd2+ {[%clk 0:00:55]} 36. Kxd2 {[%clk 0:00:18]}  Qxe6 {[%clk 0:00:53]} 37. Qg3 {[%clk 0:00:18]}  Rg5 {[%clk 0:00:40]} 38. Qb8+ {[%clk 0:00:18]}  Kh7 {[%clk 0:00:40]} 39. Qxb7 {[%clk 0:00:18]}  Rxg2 {[%clk 0:00:39]} 40. Qb8 {[%clk 0:00:18]}  Rg4 {[%clk 0:00:37]} 41. Qf8 {[%clk 0:00:16]}  f6 {[%clk 0:00:33]} 42. a4 {[%clk 0:00:12]}  Re4 {[%clk 0:00:33]} 43. Kc2 {[%clk 0:00:12]}  Re2+ {[%clk 0:00:33]} 44. Kb3 {[%clk 0:00:12]}  h5 {[%clk 0:00:24]} 45. a5 {[%clk 0:00:08]}  h4 {[%clk 0:00:23]} 46. Qb8 {[%clk 0:00:07]}  h3 {[%clk 0:00:23]} 47. Qg3 {[%clk 0:00:06]}  g5 {[%clk 0:00:19]} 48. Qf3 {[%clk 0:00:05]}  Kg6 {[%clk 0:00:19]} 49. Qd3+ {[%clk 0:00:04]}  Kh5 {[%clk 0:00:12]} 50. Qf3+ {[%clk 0:00:03]}  Kg6 {[%clk 0:00:10]} 51. Qd3+ {[%clk 0:00:03]}  Qe4 {[%clk 0:00:11]} 52. Qxh3 {[%clk 0:00:03]}  Qb1+ {[%clk 0:00:10]} 0-1


[Site "https://www.chess.com"]

[Event "Titled Tuesday Blitz February 07 Late 2023"]
[White "Gardezi, Arsal"]
[Black "Ansh M Shah"]
[WhiteFideId "30949521"]
[BlackFideId "25033379"]
[WhiteElo "2093"]
[BlackElo "2171"]
[Result "1-0"]
[Round "05"]
[TimeControl "180+2"]
[Date "2023.02.07"]
[WhiteClock "0:00:43"]
[BlackClock "0:00:14"]

1. Nf3 {[%clk 0:03:00]}  Nf6 {[%clk 0:02:53]} 2. g3 {[%clk 0:03:01]}  e6 {[%clk 0:02:53]} 3. Bg2 {[%clk 0:03:01]}  d5 {[%clk 0:02:47]} 4. O-O {[%clk 0:02:59]}  Be7 {[%clk 0:02:48]} 5. d4 {[%clk 0:03:00]}  O-O {[%clk 0:02:49]} 6. c3 {[%clk 0:03:00]}  b6 {[%clk 0:02:49]} 7. Bf4 {[%clk 0:03:01]}  Bb7 {[%clk 0:02:50]} 8. Nbd2 {[%clk 0:03:01]}  Nbd7 {[%clk 0:02:50]} 9. Re1 {[%clk 0:02:56]}  c5 {[%clk 0:02:51]} 10. Ne5 {[%clk 0:02:56]}  Nxe5 {[%clk 0:02:50]} 11. dxe5 {[%clk 0:02:55]}  Nd7 {[%clk 0:02:47]} 12. e4 {[%clk 0:02:56]}  g5 {[%clk 0:02:14]} 13. exd5 {[%clk 0:02:18]}  gxf4 {[%clk 0:02:01]} 14. d6 {[%clk 0:02:15]}  Bxg2 {[%clk 0:02:01]} 15. dxe7 {[%clk 0:02:15]}  Qxe7 {[%clk 0:02:00]} 16. Kxg2 {[%clk 0:02:15]}  fxg3 {[%clk 0:01:56]} 17. hxg3 {[%clk 0:02:13]}  Rad8 {[%clk 0:01:41]} 18. Qh5 {[%clk 0:01:59]}  f6 {[%clk 0:01:33]} 19. exf6 {[%clk 0:01:55]}  Nxf6 {[%clk 0:01:34]} 20. Qg5+ {[%clk 0:01:54]}  Qg7 {[%clk 0:01:31]} 21. Nf3 {[%clk 0:01:52]}  Rfe8 {[%clk 0:01:25]} 22. Qh4 {[%clk 0:01:46]}  Rd3 {[%clk 0:01:08]} 23. Re5 {[%clk 0:01:42]}  Kh8 {[%clk 0:00:59]} 24. Rg5 {[%clk 0:01:39]}  Qb7 {[%clk 0:00:56]} 25. Qf4 {[%clk 0:01:17]}  Rf8 {[%clk 0:00:56]} 26. Rh1 {[%clk 0:01:08]}  Rf7 {[%clk 0:00:40]} 27. Rh6 {[%clk 0:00:53]}  Ne8 {[%clk 0:00:24]} 28. Rxh7+ {[%clk 0:00:43]}  Kxh7 {[%clk 0:00:14]} 29. Qh4# {[%clk 0:00:43]} 1-0


[Site "https://www.chess.com"]

[Event "Titled Tuesday Blitz February 07 Late 2023"]
[White "Forgacs, Attila Jr."]
[Black "Antonova, Nadezhda"]
[WhiteFideId "773654"]
[BlackFideId "14700182"]
[WhiteElo "2264"]
[BlackElo "1945"]
[Result "1-0"]
[Round "05"]
[TimeControl "180+2"]
[Date "2023.02.07"]
[WhiteClock "0:01:29"]
[BlackClock "0:00:17"]

1. e4 {[%clk 0:03:00]}  c5 {[%clk 0:02:53]} 2. Nf3 {[%clk 0:03:00]}  d6 {[%clk 0:02:52]} 3. d4 {[%clk 0:03:00]}  cxd4 {[%clk 0:02:52]} 4. Nxd4 {[%clk 0:03:01]}  Nf6 {[%clk 0:02:53]} 5. Nc3 {[%clk 0:03:02]}  a6 {[%clk 0:02:53]} 6. f3 {[%clk 0:03:01]}  e5 {[%clk 0:02:49]} 7. Nb3 {[%clk 0:03:00]}  Be6 {[%clk 0:02:47]} 8. Be3 {[%clk 0:03:01]}  Nbd7 {[%clk 0:02:37]} 9. Qd2 {[%clk 0:02:59]}  h5 {[%clk 0:02:36]} 10. Be2 {[%clk 0:02:49]}  Be7 {[%clk 0:02:33]} 11. Nd5 {[%clk 0:02:47]}  Nxd5 {[%clk 0:02:29]} 12. exd5 {[%clk 0:02:48]}  Bf5 {[%clk 0:02:29]} 13. c4 {[%clk 0:02:45]}  Bh4+ {[%clk 0:02:19]} 14. g3 {[%clk 0:02:37]}  Be7 {[%clk 0:02:17]} 15. Rc1 {[%clk 0:02:34]}  b6 {[%clk 0:02:14]} 16. O-O {[%clk 0:02:30]}  a5 {[%clk 0:02:06]} 17. a4 {[%clk 0:02:29]}  Rc8 {[%clk 0:01:51]} 18. f4 {[%clk 0:02:28]}  Bh3 {[%clk 0:01:17]} 19. Rf2 {[%clk 0:02:20]}  Nc5 {[%clk 0:01:03]} 20. Nxc5 {[%clk 0:02:15]}  bxc5 {[%clk 0:01:01]} 21. fxe5 {[%clk 0:02:12]}  dxe5 {[%clk 0:01:01]} 22. Bf1 {[%clk 0:01:56]}  Bg4 {[%clk 0:00:48]} 23. h3 {[%clk 0:01:50]}  Bd7 {[%clk 0:00:46]} 24. Bg2 {[%clk 0:01:46]}  Bd6 {[%clk 0:00:39]} 25. Rcf1 {[%clk 0:01:45]}  O-O {[%clk 0:00:36]} 26. Qe2 {[%clk 0:01:39]}  h4 {[%clk 0:00:28]} 27. Qh5 {[%clk 0:01:30]}  hxg3 {[%clk 0:00:22]} 28. Rxf7 {[%clk 0:01:29]}  Rxf7 {[%clk 0:00:18]} 29. Qxf7+ {[%clk 0:01:29]}  Kh8 {[%clk 0:00:17]} 30. Qh5+ {[%clk 0:01:30]}  Kg8 {[%clk 0:00:17]} 31. Be4 {[%clk 0:01:29]} 1-0


[Site "https://www.chess.com"]

[Event "Titled Tuesday Blitz February 07 Late 2023"]
[White "Todev, Simeon"]
[Black "Schroeder, Jan-Christian"]
[WhiteFideId "2925133"]
[BlackFideId "24662259"]
[WhiteElo "2033"]
[BlackElo "2553"]
[Result "0-1"]
[Round "05"]
[TimeControl "180+2"]
[Date "2023.02.07"]
[WhiteClock "0:00:01"]
[BlackClock "0:00:43"]

1. e4 {[%clk 0:02:59]}  d5 {[%clk 0:02:59]} 2. Nf3 {[%clk 0:03:00]}  dxe4 {[%clk 0:02:58]} 3. Ne5 {[%clk 0:03:00]}  Nf6 {[%clk 0:02:57]} 4. Bc4 {[%clk 0:03:00]}  e6 {[%clk 0:02:57]} 5. d4 {[%clk 0:02:59]}  exd3 {[%clk 0:02:55]} 6. Nxd3 {[%clk 0:02:59]}  Nc6 {[%clk 0:02:54]} 7. O-O {[%clk 0:02:59]}  Be7 {[%clk 0:02:53]} 8. Nc3 {[%clk 0:02:59]}  O-O {[%clk 0:02:52]} 9. Bf4 {[%clk 0:02:59]}  Na5 {[%clk 0:02:51]} 10. Ne5 {[%clk 0:02:55]}  Nxc4 {[%clk 0:02:46]} 11. Nxc4 {[%clk 0:02:55]}  Nd5 {[%clk 0:02:39]} 12. Bg3 {[%clk 0:02:49]}  b6 {[%clk 0:02:33]} 13. Ne3 {[%clk 0:02:40]}  Bb7 {[%clk 0:02:27]} 14. Ncxd5 {[%clk 0:02:38]}  exd5 {[%clk 0:02:27]} 15. Qg4 {[%clk 0:02:34]}  Bf6 {[%clk 0:02:23]} 16. c3 {[%clk 0:02:31]}  Bc8 {[%clk 0:02:13]} 17. Qf3 {[%clk 0:02:22]}  c6 {[%clk 0:02:10]} 18. Rad1 {[%clk 0:02:18]}  Re8 {[%clk 0:02:09]} 19. c4 {[%clk 0:02:16]}  d4 {[%clk 0:01:59]} 20. Nc2 {[%clk 0:01:52]}  Ba6 {[%clk 0:01:36]} 21. b3 {[%clk 0:01:36]}  c5 {[%clk 0:01:33]} 22. Qd3 {[%clk 0:01:31]}  Bb7 {[%clk 0:01:28]} 23. Rfe1 {[%clk 0:01:30]}  Qc8 {[%clk 0:01:21]} 24. b4 {[%clk 0:01:24]}  Qc6 {[%clk 0:01:18]} 25. f3 {[%clk 0:01:24]}  a6 {[%clk 0:01:15]} 26. bxc5 {[%clk 0:01:20]}  bxc5 {[%clk 0:01:16]} 27. Na1 {[%clk 0:01:15]}  a5 {[%clk 0:01:13]} 28. Nb3 {[%clk 0:01:08]}  Rxe1+ {[%clk 0:01:13]} 29. Rxe1 {[%clk 0:01:04]}  a4 {[%clk 0:01:13]} 30. Nd2 {[%clk 0:01:03]}  Bg5 {[%clk 0:01:10]} 31. Ne4 {[%clk 0:00:59]}  Be3+ {[%clk 0:01:09]} 32. Bf2 {[%clk 0:00:59]}  f5 {[%clk 0:01:01]} 33. Ng3 {[%clk 0:00:53]}  f4 {[%clk 0:00:58]} 34. Nf5 {[%clk 0:00:47]}  Qe6 {[%clk 0:00:56]} 35. Bxe3 {[%clk 0:00:33]}  fxe3 {[%clk 0:00:54]} 36. Ng3 {[%clk 0:00:22]}  Ba6 {[%clk 0:00:50]} 37. Qa3 {[%clk 0:00:22]}  Qxc4 {[%clk 0:00:47]} 38. Rc1 {[%clk 0:00:20]}  Qb4 {[%clk 0:00:47]} 39. Qxb4 {[%clk 0:00:16]}  cxb4 {[%clk 0:00:48]} 40. Nf5 {[%clk 0:00:15]}  Rd8 {[%clk 0:00:47]} 41. Rc6 {[%clk 0:00:09]}  e2 {[%clk 0:00:47]} 42. Kf2 {[%clk 0:00:08]}  d3 {[%clk 0:00:45]} 43. Nd6 {[%clk 0:00:01]}  d2 {[%clk 0:00:43]} 0-1


[Site "https://www.chess.com"]

[Event "Titled Tuesday Blitz February 07 Late 2023"]
[White "Hristodoulou, Panagiotis"]
[Black "Szente Varga, Fruzsina"]
[WhiteFideId "4214340"]
[BlackFideId "712264"]
[WhiteElo "2372"]
[BlackElo "2075"]
[Result "1-0"]
[Round "05"]
[TimeControl "180+2"]
[Date "2023.02.07"]
[WhiteClock "0:02:14"]
[BlackClock "0:01:24"]

1. e4 {[%clk 0:02:54]}  Nf6 {[%clk 0:02:52]} 2. e5 {[%clk 0:02:53]}  Nd5 {[%clk 0:02:52]} 3. d4 {[%clk 0:02:53]}  d6 {[%clk 0:02:51]} 4. c4 {[%clk 0:02:53]}  Nb6 {[%clk 0:02:51]} 5. f4 {[%clk 0:02:53]}  g6 {[%clk 0:02:51]} 6. Nc3 {[%clk 0:02:53]}  Bg7 {[%clk 0:02:51]} 7. Be3 {[%clk 0:02:53]}  O-O {[%clk 0:02:52]} 8. Rc1 {[%clk 0:02:53]}  dxe5 {[%clk 0:02:50]} 9. dxe5 {[%clk 0:02:49]}  Nc6 {[%clk 0:02:49]} 10. Nf3 {[%clk 0:02:47]}  Bg4 {[%clk 0:02:49]} 11. Be2 {[%clk 0:02:47]}  Bxf3 {[%clk 0:02:49]} 12. Bxf3 {[%clk 0:02:46]}  Nxc4 {[%clk 0:02:49]} 13. Bf2 {[%clk 0:02:43]}  Qxd1+ {[%clk 0:02:44]} 14. Kxd1 {[%clk 0:02:38]}  Nxb2+ {[%clk 0:02:42]} 15. Ke2 {[%clk 0:02:38]}  Na5 {[%clk 0:02:36]} 16. Nd5 {[%clk 0:02:34]}  e6 {[%clk 0:02:26]} 17. Nxc7 {[%clk 0:02:33]}  Rac8 {[%clk 0:02:24]} 18. Nb5 {[%clk 0:02:32]}  a6 {[%clk 0:02:20]} 19. Nd6 {[%clk 0:02:28]}  Rcd8 {[%clk 0:01:55]} 20. Bb6 {[%clk 0:02:18]}  Rxd6 {[%clk 0:01:36]} 21. exd6 {[%clk 0:02:19]}  Nac4 {[%clk 0:01:32]} 22. Bc7 {[%clk 0:02:17]}  Bf6 {[%clk 0:01:24]} 23. Bxb7 {[%clk 0:02:14]} 1-0


[Site "https://www.chess.com"]

[Event "Titled Tuesday Blitz February 07 Late 2023"]
[White "Jeziel_Vale"]
[Black "Ramirez Allo, Eduardo"]
[BlackFideId "2224178"]
[WhiteElo "2276"]
[BlackElo "2274"]
[Result "1-0"]
[Round "05"]
[TimeControl "180+2"]
[Date "2023.02.07"]
[WhiteClock "0:00:22"]
[BlackClock "0:00:03"]

1. d4 {[%clk 0:02:59]}  Nf6 {[%clk 0:02:59]} 2. c4 {[%clk 0:02:59]}  c5 {[%clk 0:03:00]} 3. d5 {[%clk 0:03:00]}  b5 {[%clk 0:03:00]} 4. cxb5 {[%clk 0:03:01]}  a6 {[%clk 0:03:00]} 5. bxa6 {[%clk 0:03:01]}  d6 {[%clk 0:03:01]} 6. Nc3 {[%clk 0:03:02]}  g6 {[%clk 0:03:01]} 7. e4 {[%clk 0:03:02]}  Bg7 {[%clk 0:03:01]} 8. Nf3 {[%clk 0:03:01]}  O-O {[%clk 0:03:02]} 9. Bd3 {[%clk 0:03:02]}  Bxa6 {[%clk 0:03:02]} 10. O-O {[%clk 0:02:57]}  Nbd7 {[%clk 0:03:02]} 11. Re1 {[%clk 0:02:53]}  Ne8 {[%clk 0:02:56]} 12. Bg5 {[%clk 0:02:43]}  Nc7 {[%clk 0:02:54]} 13. Qe2 {[%clk 0:02:29]}  f6 {[%clk 0:02:50]} 14. Bf4 {[%clk 0:02:23]}  Qb8 {[%clk 0:02:51]} 15. Reb1 {[%clk 0:02:22]}  Qb7 {[%clk 0:02:48]} 16. a4 {[%clk 0:02:12]}  Rfb8 {[%clk 0:02:47]} 17. Nd2 {[%clk 0:01:48]}  Bxd3 {[%clk 0:02:32]} 18. Qxd3 {[%clk 0:01:48]}  Qa6 {[%clk 0:02:31]} 19. Qh3 {[%clk 0:01:43]}  Nb6 {[%clk 0:01:58]} 20. Nb5 {[%clk 0:01:25]}  Nxb5 {[%clk 0:01:43]} 21. axb5 {[%clk 0:01:25]}  Qxa1 {[%clk 0:01:44]} 22. Rxa1 {[%clk 0:01:25]}  Rxa1+ {[%clk 0:01:45]} 23. Nf1 {[%clk 0:01:26]}  Rba8 {[%clk 0:01:36]} 24. Qe6+ {[%clk 0:01:25]}  Kf8 {[%clk 0:01:32]} 25. Bxd6 {[%clk 0:01:13]}  exd6 {[%clk 0:01:13]} 26. Qxd6+ {[%clk 0:01:14]}  Kg8 {[%clk 0:00:54]} 27. Qxb6 {[%clk 0:01:13]}  Rc1 {[%clk 0:00:47]} 28. Qe6+ {[%clk 0:00:48]}  Kh8 {[%clk 0:00:35]} 29. d6 {[%clk 0:00:46]}  Rd1 {[%clk 0:00:20]} 30. d7 {[%clk 0:00:37]}  Rf8 {[%clk 0:00:12]} 31. b6 {[%clk 0:00:29]}  h5 {[%clk 0:00:03]} 32. b7 {[%clk 0:00:25]}  Kh7 {[%clk 0:00:03]} 33. Qe8 {[%clk 0:00:22]} 1-0


[Site "https://www.chess.com"]

[Event "Titled Tuesday Blitz February 07 Late 2023"]
[White "Rizzo, Tobias"]
[Black "Liu, Leonardo"]
[WhiteFideId "30942691"]
[BlackFideId "30965780"]
[WhiteElo "1867"]
[BlackElo "1919"]
[Result "1-0"]
[Round "05"]
[TimeControl "180+2"]
[Date "2023.02.07"]
[WhiteClock "0:00:14"]
[BlackClock "0:00:24"]

1. d4 {[%clk 0:03:00]}  Nf6 {[%clk 0:03:00]} 2. Bg5 {[%clk 0:02:59]}  g6 {[%clk 0:02:54]} 3. Bxf6 {[%clk 0:02:59]}  exf6 {[%clk 0:02:54]} 4. c4 {[%clk 0:02:58]}  Bg7 {[%clk 0:02:54]} 5. Nc3 {[%clk 0:02:57]}  O-O {[%clk 0:02:55]} 6. e4 {[%clk 0:02:57]}  Nc6 {[%clk 0:02:55]} 7. Nf3 {[%clk 0:02:57]}  d6 {[%clk 0:02:53]} 8. Be2 {[%clk 0:02:57]}  f5 {[%clk 0:02:54]} 9. O-O {[%clk 0:02:54]}  fxe4 {[%clk 0:02:53]} 10. Nxe4 {[%clk 0:02:55]}  Re8 {[%clk 0:02:48]} 11. Nc3 {[%clk 0:02:53]}  Bg4 {[%clk 0:02:46]} 12. d5 {[%clk 0:02:52]}  Bxf3 {[%clk 0:02:19]} 13. Bxf3 {[%clk 0:02:51]}  Nd4 {[%clk 0:02:15]} 14. g3 {[%clk 0:02:41]}  Nxf3+ {[%clk 0:01:51]} 15. Qxf3 {[%clk 0:02:41]}  Qd7 {[%clk 0:01:51]} 16. Rfe1 {[%clk 0:02:38]}  Re5 {[%clk 0:01:48]} 17. Rxe5 {[%clk 0:02:34]}  dxe5 {[%clk 0:01:48]} 18. g4 {[%clk 0:02:24]}  f5 {[%clk 0:01:47]} 19. gxf5 {[%clk 0:02:20]}  gxf5 {[%clk 0:01:48]} 20. Kh1 {[%clk 0:02:19]}  Kh8 {[%clk 0:01:46]} 21. Rg1 {[%clk 0:02:18]}  e4 {[%clk 0:01:45]} 22. Qf4 {[%clk 0:02:13]}  Re8 {[%clk 0:01:34]} 23. Nd1 {[%clk 0:02:03]}  Be5 {[%clk 0:01:30]} 24. Qg5 {[%clk 0:01:59]}  Qf7 {[%clk 0:01:29]} 25. b3 {[%clk 0:01:44]}  f4 {[%clk 0:01:12]} 26. Qg4 {[%clk 0:00:54]}  Bd4 {[%clk 0:01:07]} 27. Rg2 {[%clk 0:00:37]}  Be5 {[%clk 0:00:39]} 28. Rg1 {[%clk 0:00:35]}  Rd8 {[%clk 0:00:37]} 29. Qg5 {[%clk 0:00:33]}  Re8 {[%clk 0:00:34]} 30. Rg4 {[%clk 0:00:27]}  Rg8 {[%clk 0:00:30]} 31. Qxe5+ {[%clk 0:00:26]}  Rg7 {[%clk 0:00:30]} 32. Rxf4 {[%clk 0:00:15]}  Qg6 {[%clk 0:00:24]} 33. Rf8# {[%clk 0:00:14]} 1-0


[Site "https://www.chess.com"]

[Event "Titled Tuesday Blitz February 07 Late 2023"]
[White "Nunez V, Gustavo Eduardo"]
[Black "Bongo Akanga Ndjila, Barthelemy"]
[WhiteFideId "4403690"]
[BlackFideId "10609431"]
[WhiteElo "2212"]
[BlackElo "1824"]
[Result "1-0"]
[Round "05"]
[TimeControl "180+2"]
[Date "2023.02.07"]
[WhiteClock "0:01:16"]
[BlackClock "0:00:34"]

1. e4 {[%clk 0:02:56]}  e6 {[%clk 0:02:51]} 2. d3 {[%clk 0:02:54]}  d5 {[%clk 0:02:52]} 3. Nd2 {[%clk 0:02:54]}  Nf6 {[%clk 0:02:51]} 4. Ngf3 {[%clk 0:02:54]}  c5 {[%clk 0:02:50]} 5. g3 {[%clk 0:02:52]}  Nc6 {[%clk 0:02:50]} 6. Bg2 {[%clk 0:02:52]}  Bd7 {[%clk 0:02:47]} 7. O-O {[%clk 0:02:52]}  Be7 {[%clk 0:02:43]} 8. Re1 {[%clk 0:02:52]}  d4 {[%clk 0:02:41]} 9. c4 {[%clk 0:02:47]}  O-O {[%clk 0:02:40]} 10. e5 {[%clk 0:02:47]}  Ne8 {[%clk 0:02:35]} 11. Ne4 {[%clk 0:02:47]}  f6 {[%clk 0:02:26]} 12. exf6 {[%clk 0:02:40]}  Nxf6 {[%clk 0:02:26]} 13. Nxf6+ {[%clk 0:02:39]}  Bxf6 {[%clk 0:02:25]} 14. Bf4 {[%clk 0:02:37]}  b6 {[%clk 0:02:20]} 15. Ne5 {[%clk 0:02:34]}  Nxe5 {[%clk 0:02:20]} 16. Bxe5 {[%clk 0:02:32]}  Bxe5 {[%clk 0:02:09]} 17. Rxe5 {[%clk 0:02:25]}  Rb8 {[%clk 0:02:05]} 18. Qe2 {[%clk 0:02:24]}  Rf6 {[%clk 0:02:05]} 19. Re1 {[%clk 0:02:24]}  Rh6 {[%clk 0:02:01]} 20. f4 {[%clk 0:02:23]}  Qf8 {[%clk 0:01:57]} 21. Rg5 {[%clk 0:02:22]}  Qf6 {[%clk 0:01:47]} 22. Qe5 {[%clk 0:02:18]}  Qxe5 {[%clk 0:01:47]} 23. Rexe5 {[%clk 0:02:18]}  Rf8 {[%clk 0:01:45]} 24. h4 {[%clk 0:02:15]}  Kf7 {[%clk 0:01:37]} 25. Bh3 {[%clk 0:02:13]}  a5 {[%clk 0:01:28]} 26. b3 {[%clk 0:02:09]}  Rb8 {[%clk 0:01:25]} 27. a4 {[%clk 0:02:09]}  Rc8 {[%clk 0:01:18]} 28. Re2 {[%clk 0:01:58]}  g6 {[%clk 0:01:17]} 29. Bg4 {[%clk 0:01:53]}  Re8 {[%clk 0:01:13]} 30. Rge5 {[%clk 0:01:51]}  Kf6 {[%clk 0:01:06]} 31. Kf2 {[%clk 0:01:50]}  Kf7 {[%clk 0:01:04]} 32. Bf3 {[%clk 0:01:25]}  Kf6 {[%clk 0:01:03]} 33. g4 {[%clk 0:01:19]}  Rxh4 {[%clk 0:01:02]} 34. Kg3 {[%clk 0:01:19]}  g5 {[%clk 0:00:41]} 35. fxg5+ {[%clk 0:01:19]}  Kg6 {[%clk 0:00:36]} 36. Kxh4 {[%clk 0:01:18]}  Rf8 {[%clk 0:00:34]} 37. Kg3 {[%clk 0:01:16]} 1-0


[Site "https://www.chess.com"]